bitfinex/quotes_ETHUSD_20250403
["timestamp","ask_amount","ask_price","bid_price","bid_amount"]
[1743702204735,0.05,1779.9,1779.8,6.1686]
[1743702205102,0.05,1779.9,1779.8,6.32842875]
[1743702205509,0.05,1779.9,1779.8,6.50406055]
[1743702205822,0.05,1779.9,1779.8,6.56023592]
[1743702206023,0.05,1779.9,1779.8,7.33123592]
[1743702206230,0.05,1779.9,1779.8,14.30903578]
[1743702206418,0.05,1779.9,1779.8,14.25286041]
[1743702207309,1e-05,1779.9,1779.8,14.25286041]
[1743702207846,1e-05,1779.9,1779.8,14.6655254]
[1743702208216,1e-05,1779.9,1779.8,17.6655254]
[1743702208421,1e-05,1779.9,1779.8,23.8255254]
[1743702208624,0.05,1780.9,1780.8,5.61545]
[1743702208823,0.05,1780.9,1780.8,5.76497318]
[1743702209331,0.05,1780.9,1780.8,6.37112304]
[1743702209742,0.05,1780.9,1780.8,6.31497318]
[1743702210338,0.05,1780.9,1780.8,7.08887318]
[1743702210757,0.05,1780.9,1780.8,7.26438956]
[1743702211044,0.05,1780.9,1780.8,8.60853783]
[1743702211840,0.05,1780.9,1780.8,8.43302145]
[1743702212037,0.05,1780.9,1780.8,8.37687814]
[1743702212337,0.05,1780.9,1780.8,7.60297814]
[1743702212537,0.8197,1780.9,1780.8,0.14952318]
[1743702212842,0.8197,1780.9,1780.6,5.61606]
[1743702213038,0.8197,1780.9,1780.8,0.12703152]
[1743702213216,0.8197,1780.9,1780.7,5.61563]
[1743702213423,0.8197,1780.9,1780.8,0.12703152]
[1743702213805,0.05,1780.9,1780.8,6.16545]
[1743702214011,0.05,1780.9,1780.8,7.47060252]
[1743702214204,3.0,1781.1,1780.8,7.47060252]
[1743702214205,8.61454,1781.1,1780.8,1.30515252]
[1743702214410,3.0,1781.1,1780.8,0.67703152]
[1743702214941,3.0,1781.1,1780.8,6.29237152]
[1743702215156,8.61454,1781.1,1780.8,0.12703152]
[1743702215452,8.61454,1781.1,1780.8,5.74245152]
[1743702215857,14.22928,1781.1,1780.8,0.12703152]
[1743702216160,10.706248,1781.1,1780.8,0.12703152]
[1743702216316,3.0,1781.1,1780.8,5.74247152]
[1743702216537,3.0,1781.1,1780.8,5.74232152]
[1743702216936,3.0,1781.1,1780.8,5.74230152]
[1743702217829,3.0,1781.1,1780.8,0.12703152]
[1743702218026,5.61492,1781.0,1780.8,0.12703152]
[1743702218270,15.19832,1781.1,1780.8,0.12703152]
[1743702218481,9.58354,1781.1,1780.8,0.12703152]
[1743702218683,5.61484,1781.0,1780.8,0.12703152]
[1743702219380,6.43003,1780.9,1780.8,0.12703152]
[1743702219683,6.43003,1780.9,1780.6,5.61606]
[1743702219843,6.43003,1780.9,1780.8,0.12703152]
[1743702220033,7.634517,1780.9,1780.6,5.61606]
[1743702220233,6.43003,1780.9,1780.7,0.12703152]
[1743702220759,6.43003,1780.9,1780.6,5.61606]
[1743702220957,6.7249,1780.9,1780.4,5.61671]
[1743702221131,11.23144,1780.8,1780.7,0.12703152]
[1743702221331,5.6162,1780.6,1780.1,6.40797]
[1743702221577,5.61649,1780.5,1780.2,5.61722]
[1743702221781,11.52649,1780.5,1780.2,5.61722]
[1743702222449,11.95312333,1780.5,1780.2,5.61722]
[1743702222890,0.7883,1780.4,1779.9,6.39168]
[1743702223041,5.61776,1780.1,1779.8,1.35279986]
[1743702223236,12.05871,1780.1,1779.8,1.35279986]
[1743702223548,5.61829,1779.9,1779.6,6.38689]
[1743702223737,5.61802,1780.0,1779.6,6.38689]
[1743702223950,5.61829,1779.9,1779.6,5.61919]
[1743702224358,11.23621,1780.0,1779.6,5.67525594]
[1743702224557,5.61802,1780.0,1779.7,5.6188]
[1743702224779,11.65169822,1780.0,1779.6,10.79324659]
[1743702224970,11.65164822,1780.0,1779.6,10.84943252]
[1743702225157,6.03348822,1780.0,1779.6,10.84943252]
[1743702225553,0.41546822,1780.0,1779.6,5.17417659]
[1743702225784,5.61841,1779.9,1779.5,16.84882]
[1743702226001,5.618,1780.0,1779.7,5.61863]
[1743702226383,5.618,1780.0,1779.6,5.61913]
[1743702226555,11.23623,1780.0,1779.6,5.61913]
[1743702226765,5.61832,1779.9,1779.5,11.77938]
[1743702227105,6.03071507,1780.0,1779.6,6.796938]
[1743702227398,5.61803,1780.0,1779.7,5.61887]
[1743702227572,5.61803,1780.0,1779.6,6.796938]
[1743702227770,0.8231,1780.1,1779.6,1.177938]
[1743702227988,5.61802,1780.0,1779.6,6.797138]
[1743702228292,5.61832,1779.9,1779.6,6.797138]
[1743702228456,5.61802,1780.0,1779.6,12.416268]
[1743702228790,5.61802,1780.0,1779.6,6.797068]
[1743702229091,12.05859,1780.1,1779.7,5.6189]
[1743702229389,14.28928389,1780.3,1779.7,5.6189]
[1743702229390,3.0,1780.2,1779.9,5.61812]
[1743702229693,3.0,1780.2,1780.0,0.55]
[1743702229899,8.61737,1780.2,1779.9,0.55]
[1743702230307,8.61737,1780.2,1779.8,6.43706]
[1743702230505,14.23492,1780.2,1779.8,6.43706]
[1743702230808,8.61737,1780.2,1779.8,12.05557]
[1743702230962,3.0,1780.2,1779.9,5.618]
[1743702231164,8.61734,1780.2,1779.9,5.618]
[1743702231594,3.0,1780.2,1779.9,11.23612]
[1743702231932,3.0,1780.2,1780.0,0.20945112]
[1743702232083,6.738,1780.3,1780.0,5.82740112]
[1743702232288,12.35503,1780.3,1780.0,0.20945112]
[1743702232815,5.61752,1780.2,1780.0,0.20945112]
[1743702232985,5.61766,1780.1,1779.8,7.95857921]
[1743702233185,5.61752,1780.2,1779.9,5.82773112]
[1743702233705,12.35509,1780.3,1780.0,5.61781]
[1743702233706,6.738,1780.3,1780.0,5.61781]
[1743702234416,6.738,1780.3,1780.1,0.20945112]
[1743702234590,12.35505,1780.3,1780.1,0.20945112]
[1743702234791,17.97235,1780.3,1780.1,0.20945112]
[1743702234990,12.35505,1780.3,1779.9,11.23633]
[1743702235250,12.35505,1780.3,1780.0,5.82733112]
[1743702235421,5.61734,1780.2,1780.0,0.20945112]
[1743702235717,5.61734,1780.2,1779.8,5.61856]
[1743702235718,5.61766,1780.1,1779.7,5.6189]
[1743702235920,5.6174,1780.2,1779.6,7.545638]
[1743702236109,5.6174,1780.2,1779.8,5.82779112]
[1743702236304,5.6174,1780.2,1779.9,5.61829]
[1743702236509,5.6174,1780.2,1779.9,0.20945112]
[1743702236686,5.61776,1780.1,1779.9,0.20945112]
[1743702237217,5.61776,1780.1,1779.9,0.15708834]
[1743702237421,5.61739,1780.2,1779.9,5.72564002]
[1743702238307,11.23498,1780.2,1779.9,0.10745002]
[1743702238507,5.61772,1780.1,1779.9,0.10745002]
[1743702238712,5.61797,1780.0,1779.9,0.10745002]
[1743702238912,6.39187,1780.0,1779.9,0.10745002]
[1743702239121,5.61833,1779.9,1779.7,0.17564707]
[1743702239321,11.23682,1779.9,1779.7,0.17564707]
[1743702239626,5.6186,1779.8,1779.7,0.17564707]
[1743702239814,9.4286,1779.8,1779.7,0.17564707]
[1743702240193,3.81,1779.8,1779.7,0.17564707]
[1743702240401,3.0291519,1779.8,1779.7,0.17564707]
[1743702240793,0.0291519,1779.8,1779.7,5.61892]
[1743702241128,0.0291519,1779.8,1779.7,7.292705]
[1743702241330,0.0291519,1779.8,1779.7,8.079505]
[1743702241830,0.0291519,1779.8,1779.7,8.25515207]
[1743702242014,0.0291519,1779.8,1779.7,8.31132624]
[1743702242220,5.91,1780.6,1780.4,5.61651]
[1743702242417,11.52623,1780.6,1780.3,0.7894]
[1743702242606,5.61641,1780.5,1780.2,11.20805]
[1743702242811,11.52623,1780.6,1780.3,0.55]
[1743702243216,0.8304,1780.5,1780.2,18.586795]
[1743702243412,11.52623,1780.6,1780.3,0.55]
[1743702243610,5.91,1780.6,1780.4,5.61671]
[1743702243999,11.52616,1780.6,1780.3,6.16693]
[1743702244205,11.95485909,1780.6,1780.3,6.16693]
[1743702244405,11.95485909,1780.6,1780.3,5.61693]
[1743702244736,6.33869909,1780.6,1780.3,5.61702]
[1743702245035,6.33869909,1780.6,1780.4,5.61671]
[1743702245537,3.0,1780.7,1780.4,1.123373]
[1743702245734,3.0,1780.7,1780.5,5.61623]
[1743702245907,3.0,1780.7,1780.5,0.55]
[1743702246333,3.0,1780.8,1780.5,0.55]
[1743702246634,6.38175,1780.9,1780.5,6.16628]
[1743702247135,5.91,1781.0,1780.7,5.61563]
[1743702247311,5.91,1781.0,1780.7,6.41353]
[1743702248638,5.91,1781.0,1780.8,5.61526]
[1743702248835,5.91,1781.0,1780.7,6.58917914]
[1743702249037,5.91,1781.0,1780.7,0.97346914]
[1743702249238,0.8172,1780.9,1780.7,5.79130914]
[1743702249425,0.8172,1780.9,1780.7,0.17556914]
[1743702250009,0.8172,1780.9,1780.6,11.23172]
[1743702250305,3.0,1781.1,1780.8,5.61536]
[1743702250509,3.0,1781.2,1780.8,5.61544]
[1743702250848,3.97272,1781.2,1780.9,5.61497]
[1743702251210,4.39441435,1781.2,1781.0,5.61478]
[1743702251544,4.39441435,1781.2,1780.8,0.55]
[1743702251545,6.7272,1781.3,1780.8,0.55]
[1743702251719,5.91,1781.3,1781.1,6.4369]
[1743702251915,5.91,1781.5,1781.2,5.61419]
[1743702252449,11.52342,1781.5,1781.1,6.43695]
[1743702252657,17.13687,1781.5,1781.1,6.43695]
[1743702252826,18.929717,1781.5,1781.1,6.43695]
[1743702253146,18.929697,1781.5,1781.1,6.43695]
[1743702253350,13.74065777,1781.5,1781.1,6.49308015]
[1743702253546,13.74065777,1781.5,1781.2,5.61405]
[1743702253748,8.12723777,1781.5,1781.2,5.61404]
[1743702253948,6.33439077,1781.5,1781.2,5.61404]
[1743702254152,11.94769077,1781.5,1781.1,5.61448]
[1743702254446,6.33439077,1781.5,1781.2,5.61401]
[1743702255363,11.94764077,1781.5,1781.2,5.61401]
[1743702255768,6.33439077,1781.5,1781.2,5.61401]
[1743702256124,11.94764077,1781.5,1781.1,6.16446]
[1743702256327,14.08285885,1781.5,1781.1,6.16436]
[1743702256552,14.08285885,1781.5,1781.1,11.77873]
[1743702256942,14.08285885,1781.5,1781.2,5.61414]
[1743702257241,6.33439077,1781.5,1781.2,5.61404]
[1743702257745,5.91,1781.5,1781.3,6.41397]
[1743702258067,5.91,1781.5,1781.3,12.02769]
[1743702258272,6.6654,1781.8,1781.5,5.61308]
[1743702258572,6.6654,1781.8,1781.4,6.16333]
[1743702258573,12.27773,1781.8,1781.4,6.16333]
[1743702258791,5.61306,1781.6,1781.3,5.61376]
[1743702259074,6.38258,1781.5,1781.2,5.61418]
[1743702259221,6.79898512,1781.7,1781.3,0.55]
[1743702259421,11.99472,1781.7,1781.3,6.16361]
[1743702259651,5.613,1781.6,1781.3,5.61361]
[1743702260268,11.22612,1781.6,1781.2,11.22821]
[1743702260472,11.22612,1781.6,1781.1,1.3606]
[1743702260473,5.61366,1781.4,1781.1,5.6144]
[1743702260834,6.41412,1781.5,1781.1,5.6144]
[1743702261067,5.61358,1781.4,1781.1,5.6144]
[1743702261230,6.04407221,1781.4,1781.1,5.6144]
[1743702261635,6.04408221,1781.4,1781.1,5.61438]
[1743702261840,6.04408221,1781.4,1781.1,5.6145]
[1743702262821,6.04415221,1781.4,1781.1,5.61437]
[1743702263083,5.61388,1781.3,1781.0,11.22954]
[1743702263283,11.65790221,1781.4,1781.1,5.61447]
[1743702263492,5.61399,1781.3,1780.9,5.615]
[1743702263695,5.61436,1781.2,1780.9,5.615]
[1743702263982,5.61436,1781.2,1780.8,5.61537]
[1743702263983,5.61435,1781.2,1780.8,5.61531]
[1743702264186,5.61453,1781.1,1780.8,5.61531]
[1743702264485,0.7697,1781.0,1780.7,11.23142]
[1743702264646,0.7697,1781.0,1780.8,1.123142]
[1743702265661,0.7697,1781.0,1780.7,11.23133]
[1743702265962,0.7697,1781.0,1780.7,5.61565]
[1743702266366,0.7697,1781.0,1780.7,5.61563]
[1743702266574,6.38464,1781.0,1780.7,5.61563]
[1743702266775,11.99963,1781.0,1780.7,5.61563]
[1743702266975,11.99963,1781.0,1780.7,6.738797]
[1743702267276,11.99963,1781.0,1780.7,1.123167]
[1743702267773,5.61518,1780.9,1780.7,1.123167]
[1743702267962,0.7697,1781.0,1780.7,6.738787]
[1743702268279,6.38464,1781.0,1780.7,6.738787]
[1743702268672,11.99974,1781.0,1780.7,1.123167]
[1743702268877,5.61518,1780.9,1780.5,6.91703]
[1743702269173,6.39359,1780.7,1780.3,46.81886]
[1743702269392,6.39359,1780.7,1780.6,0.17555343]
[1743702270601,6.39359,1780.7,1780.4,5.61661]
[1743702270756,6.39359,1780.7,1780.4,6.27251634]
[1743702270962,5.61618,1780.6,1780.4,0.65590634]
[1743702271280,5.61654,1780.5,1780.3,0.17555343]
[1743702271470,5.61671,1780.4,1780.3,0.17555343]
[1743702271790,5.61671,1780.4,1780.2,0.17555343]
[1743702272852,17.14363,1780.4,1780.1,0.17555343]
[1743702273192,6.38175,1780.3,1780.1,0.17555343]
[1743702274192,5.91,1780.4,1780.1,6.37240577]
[1743702274491,5.91,1780.4,1780.2,5.61731]
[1743702274787,5.91,1780.4,1780.1,11.81441234]
[1743702275789,5.91,1780.4,1780.2,5.61727]
[1743702275988,5.91,1780.4,1780.2,11.41004343]
[1743702276189,5.91,1780.4,1780.3,6.16703]
[1743702276393,5.91,1780.4,1780.3,7.30803434]
[1743702276692,5.91,1780.4,1780.3,6.75803434]
[1743702276869,5.91,1780.4,1780.3,1.14100434]
[1743702277273,5.91,1780.4,1780.3,7.30803434]
[1743702277972,3.0,1780.5,1780.3,1.14100434]
[1743702278282,3.0,1780.5,1780.2,11.23447]
[1743702278977,3.817,1780.7,1780.2,0.55]
[1743702279178,5.91,1780.8,1780.7,5.61576]
[1743702279381,3.0,1781.0,1780.7,5.61565]
[1743702280099,5.61517,1780.9,1780.6,5.61603]
[1743702280274,5.61546,1780.8,1780.5,5.61635]
[1743702280478,5.61587,1780.7,1780.4,11.75565]
[1743702280677,11.23185,1780.7,1780.3,5.61697]
[1743702281006,17.14185,1780.7,1780.3,12.45403351]
[1743702281173,5.91,1780.7,1780.4,11.23316]
[1743702281378,11.52577,1780.7,1780.4,5.61657]
[1743702281587,11.52577,1780.7,1780.3,6.83707351]
[1743702281780,6.34155129,1780.7,1780.4,5.61658]
[1743702282269,6.34155129,1780.7,1780.4,11.23317]
[1743702282469,6.34155129,1780.7,1780.4,11.2332]
[1743702282681,6.34155129,1780.7,1780.4,5.61658]
[1743702283082,5.91,1780.7,1780.5,5.6163]
[1743702283412,11.52579,1780.7,1780.4,7.03753181]
[1743702284302,5.91,1780.7,1780.5,5.61624]
[1743702284501,5.91,1780.7,1780.4,5.79219846]
[1743702284670,5.91,1780.7,1780.4,6.93308431]
[1743702285372,11.52578,1780.7,1780.4,6.93308431]
[1743702285574,5.91,1780.7,1780.4,12.54969431]
[1743702285774,5.91,1780.7,1780.5,11.23266]
[1743702286297,5.91,1780.7,1780.6,5.61608]
[1743702286497,10.98672161,1781.1,1780.8,5.61543]
[1743702286498,5.61461,1781.1,1780.8,5.61543]
[1743702286900,6.37196,1781.2,1780.8,5.61532]
[1743702287082,0.7577,1781.2,1780.9,11.2299]
[1743702287406,9.37201,1781.2,1780.8,5.61541]
[1743702287614,9.37201,1781.2,1780.8,5.61531]
[1743702287811,9.37201,1781.2,1780.9,1.111531]
[1743702288017,9.37201,1781.2,1780.9,6.726571]
[1743702288588,9.37201,1781.2,1780.9,6.176571]
[1743702288881,5.61481,1781.1,1780.7,5.79131401]
[1743702289329,5.61481,1781.1,1780.7,11.40694401]
[1743702289713,5.61481,1781.1,1780.8,5.61543]
[1743702290088,5.61466,1781.1,1780.8,5.61543]
[1743702290722,5.61466,1781.1,1780.8,5.79100401]
[1743702290923,5.61466,1781.1,1780.8,1.31624941]
[1743702291094,11.22944,1781.1,1780.8,0.17557401]
[1743702291523,5.61489,1781.0,1780.8,0.17557401]
[1743702292115,5.61489,1781.0,1780.7,5.79132401]
[1743702292713,11.22991,1781.0,1780.7,5.79132401]
[1743702292907,5.61454,1781.1,1780.7,5.79122401]
[1743702293109,11.22932,1781.1,1780.7,12.65989501]
[1743702293313,5.61454,1781.1,1780.8,5.61545]
[1743702293823,11.2292,1781.1,1780.8,5.61545]
[1743702293989,5.61454,1781.1,1780.8,5.61545]
[1743702294390,14.21888597,1781.2,1780.9,5.61511]
[1743702295216,3.7577,1781.2,1780.9,6.7556434]
[1743702295817,5.61453,1781.1,1780.9,1.1406034]
[1743702296020,5.61453,1781.1,1780.9,0.17557401]
[1743702297229,8.61425,1781.2,1780.9,5.79064401]
[1743702297829,8.61425,1781.2,1780.9,0.17557401]
[1743702298222,5.61461,1781.1,1780.9,0.17557401]
[1743702299423,8.61424,1781.2,1780.9,0.17557401]
[1743702299597,5.61454,1781.1,1780.9,0.17557401]
[1743702300329,5.68439836,1781.0,1780.9,0.17557401]
[1743702300541,0.83744239,1781.0,1780.9,0.17557401]
[1743702300743,0.02914239,1781.0,1780.9,0.17557401]
[1743702301746,0.02914239,1781.0,1780.8,11.40622401]
[1743702301914,0.02914239,1781.0,1780.8,5.79086401]
[1743702302116,0.02914239,1781.0,1780.9,0.7577]
[1743702302317,0.02914239,1781.0,1780.9,6.92283]
[1743702302929,0.02914239,1781.0,1780.9,6.34070401]
[1743702303130,0.02914239,1781.0,1780.9,7.21904225]
[1743702303533,2.39e-06,1781.0,1780.9,7.21904225]
[1743702303727,12.79009946,1781.9,1781.5,6.43668]
[1743702303939,3.0,1781.8,1781.4,6.16353]
[1743702304140,5.61296,1781.6,1781.3,11.20083]
[1743702304340,0.7997,1781.6,1781.3,16.81455]
[1743702304549,5.61292,1781.7,1781.4,5.6135]
[1743702304760,5.61292,1781.7,1781.4,7.294922]
[1743702305442,11.22582,1781.7,1781.4,1.85699601]
[1743702305644,8.61236,1781.8,1781.5,0.7721]
[1743702306021,5.96,1781.9,1781.6,0.55]
[1743702306216,5.96,1781.9,1781.8,5.6123]
[1743702306417,5.96,1781.9,1781.8,6.734778]
[1743702306734,0.05,1781.9,1781.8,13.686778]
[1743702308256,5.91,1782.7,1782.0,0.7999]
[1743702308478,5.60935,1782.8,1782.3,6.41049]
[1743702308677,5.60926,1782.8,1782.4,5.61028]
[1743702308979,12.34056,1782.8,1782.4,12.422487]
[1743702309267,6.7313,1782.8,1782.5,5.60995]
[1743702309472,6.7313,1782.8,1782.3,0.7999]
[1743702309473,5.60975,1782.7,1782.3,0.7999]
[1743702309691,0.7501,1782.4,1782.2,0.17557401]
[1743702310027,10.45767597,1782.3,1782.2,0.17557401]
[1743702310270,5.61147,1782.1,1781.7,6.40771]
[1743702310849,5.61147,1782.1,1781.7,0.7951]
[1743702311050,5.61147,1782.1,1781.7,6.40771]
[1743702311246,5.61147,1782.1,1781.7,12.02013]
[1743702311464,5.61147,1782.1,1781.7,6.40752]
[1743702311660,5.61147,1782.1,1781.7,8.173563]
[1743702311865,11.22312,1782.1,1781.7,2.561143]
[1743702312067,5.61147,1782.1,1781.7,8.173733]
[1743702312451,5.61107,1782.2,1781.8,5.61228]
[1743702312648,5.61107,1782.2,1781.9,0.05611412]
[1743702312954,5.61107,1782.2,1781.7,13.786033]
[1743702312955,5.61158,1782.1,1781.7,13.786033]
[1743702313171,5.61112,1782.2,1781.8,5.61225]
[1743702313561,5.61149,1782.1,1781.7,8.173573]
[1743702314463,11.22307,1782.1,1781.7,8.173573]
[1743702314659,5.61228,1781.9,1781.5,6.40793]
[1743702314961,5.61228,1781.9,1781.5,5.61324]
[1743702315563,5.61234,1781.8,1781.4,5.61342]
[1743702315942,5.61274,1781.7,1781.3,5.61385]
[1743702316749,0.41492622,1781.8,1781.3,5.66984054]
[1743702316949,5.61233,1781.8,1781.4,6.18033405]
[1743702317354,5.61233,1781.8,1781.4,11.79373405]
[1743702317848,5.61233,1781.8,1781.4,6.18033405]
[1743702318072,5.61263,1781.7,1781.4,0.56698405]
[1743702318250,5.6131,1781.6,1781.2,11.25613]
[1743702318453,6.3936,1781.6,1781.2,11.25613]
[1743702318775,12.00677,1781.6,1781.2,5.61413]
[1743702319070,5.61326,1781.5,1781.1,6.37503]
[1743702319275,5.61326,1781.5,1781.1,5.61433]
[1743702319444,5.61326,1781.5,1781.1,6.737243]
[1743702320073,5.61326,1781.5,1781.1,5.61433]
[1743702320398,6.37759,1781.2,1780.8,5.61543]
[1743702320702,11.99203,1781.2,1780.8,5.61543]
[1743702320992,6.37759,1781.2,1780.7,5.61559]
[1743702321149,6.37759,1781.2,1780.8,5.61533]
[1743702321352,6.37759,1781.2,1780.8,6.74400695]
[1743702321659,11.22935,1781.1,1780.7,5.61574]
[1743702321972,5.61457,1781.1,1780.7,11.23139]
[1743702322179,6.3775,1781.2,1780.8,5.61544]
[1743702323143,6.3775,1781.2,1780.8,11.23074]
[1743702323346,6.3775,1781.2,1780.8,5.6153]
[1743702323540,5.6147,1781.1,1780.7,5.79128639]
[1743702324086,5.6147,1781.1,1780.7,11.40693639]
[1743702324446,5.6147,1781.1,1780.7,11.23139]
[1743702324647,5.6147,1781.1,1780.8,5.61543]
[1743702325249,12.42070527,1781.2,1780.8,5.61543]
[1743702325698,5.61452,1781.1,1780.8,5.61543]
[1743702326388,5.61452,1781.1,1780.7,11.2313]
[1743702326887,11.22921,1781.1,1780.7,5.61565]
[1743702327083,5.61452,1781.1,1780.7,5.61565]
[1743702327283,5.61498,1781.0,1780.6,5.61604]
[1743702327482,5.61514,1780.9,1780.6,5.61604]
[1743702327783,5.61498,1781.0,1780.6,5.67206489]
[1743702327975,5.61498,1781.0,1780.7,5.61562]
[1743702328690,3.7633,1781.2,1780.9,5.61512]
[1743702328853,3.0,1781.2,1781.0,0.55]
[1743702329054,6.6934,1781.4,1781.1,5.61439]
[1743702329362,6.6934,1781.4,1781.1,5.61435]
[1743702329565,0.7624,1781.6,1781.3,5.61357]
[1743702329752,11.52268,1781.7,1781.3,5.61357]
[1743702330169,11.94376411,1781.7,1781.3,5.61357]
[1743702330369,11.94376411,1781.7,1781.4,5.61354]
[1743702330993,0.7624,1781.8,1781.4,1.122711]
[1743702331165,5.91,1781.9,1781.6,5.61277]
[1743702331362,5.91,1781.9,1781.5,0.55]
[1743702331674,11.22498,1781.8,1781.5,0.55]
[1743702331867,5.61247,1781.8,1781.5,6.1632]
[1743702332064,11.52198,1781.9,1781.6,5.61281]
[1743702332274,5.91,1781.9,1781.7,5.61258]
[1743702332586,8.61177,1782.0,1781.7,5.61258]
[1743702332587,6.43462,1782.1,1781.7,5.61258]
[1743702332786,6.43462,1782.1,1781.8,5.61217]
[1743702333184,12.04615,1782.1,1781.7,6.40758]
[1743702333370,12.04615,1782.1,1781.7,7.609626]
[1743702334192,6.43462,1782.1,1781.7,13.222086]
[1743702334690,6.43462,1782.1,1781.8,5.61228]
[1743702334886,3.8232,1782.1,1781.8,5.61228]
[1743702335093,3.0,1782.1,1781.9,5.61184]
[1743702335955,6.340523,1782.2,1781.9,5.61184]
[1743702336161,5.91,1782.2,1782.0,5.61157]
[1743702337668,5.91,1782.2,1781.9,6.734241]
[1743702337870,5.91,1782.2,1781.9,11.22368]
[1743702338076,5.91,1782.2,1781.9,5.61183]
[1743702338806,5.91,1782.2,1781.9,5.61197]
[1743702339000,5.91,1782.2,1781.9,5.61186]
[1743702339206,5.91,1782.2,1782.0,5.61153]
[1743702339606,5.91,1782.2,1782.0,11.2231]
[1743702339803,5.91,1782.2,1782.0,5.61153]
[1743702339976,5.91,1782.2,1781.9,5.61193]
[1743702340178,5.91,1782.2,1781.9,11.22379]
[1743702340581,13.27624052,1782.2,1781.8,5.78762797]
[1743702340778,10.45234388,1782.1,1781.8,0.17543797]
[1743702340989,10.45286388,1781.9,1781.8,0.17543797]
[1743702341385,5.61198,1781.9,1781.8,0.17543797]
[1743702341584,10.45286388,1781.9,1781.8,0.17543797]
[1743702341893,19.36286388,1781.9,1781.8,0.17543797]
[1743702342098,5.61324,1781.5,1781.4,0.17543797]
[1743702342278,17.13614,1781.6,1781.4,0.17543797]
[1743702342695,11.523,1781.6,1781.4,0.17543797]
[1743702342903,5.61324,1781.5,1781.4,0.17543797]
[1743702343094,5.61324,1781.5,1781.2,5.61416]
[1743702343289,5.61324,1781.5,1781.2,6.45363696]
[1743702344319,0.8207,1781.4,1781.2,0.83947696]
[1743702344529,0.8207,1781.4,1780.7,0.7521]
[1743702344530,5.61456,1781.1,1780.7,6.3678]
[1743702344740,5.61456,1781.1,1780.7,11.98339]
[1743702344937,11.52424,1781.2,1780.8,11.23062]
[1743702345236,11.52424,1781.2,1780.8,12.428892]
[1743702345393,17.13864,1781.2,1780.8,6.98912712]
[1743702345794,5.61457,1781.1,1780.8,6.98912712]
[1743702346838,0.8006,1781.0,1780.8,1.37381712]
[1743702347008,0.8006,1781.0,1780.8,1.198272]
[1743702347209,0.8006,1781.0,1780.8,6.813722]
[1743702348223,0.8006,1781.0,1780.6,11.23195]
[1743702348224,6.41548,1781.0,1780.6,11.23195]
[1743702348386,6.41548,1781.0,1780.6,5.61597]
[1743702348587,6.41548,1781.0,1780.6,5.61593]
[1743702348792,12.03048,1781.0,1780.6,5.61593]
[1743702349392,12.03048,1781.0,1780.6,11.23187]
[1743702349721,12.03048,1781.0,1780.6,12.355057]
[1743702349920,5.61516,1780.9,1780.6,6.739117]
[1743702350314,5.61516,1780.9,1780.6,5.61593]
[1743702350499,11.23048,1780.9,1780.5,5.61633]
[1743702350706,11.23048,1780.9,1780.5,11.23256]
[1743702350924,5.61516,1780.9,1780.5,11.23256]
[1743702351101,5.61516,1780.9,1780.6,5.61606]
[1743702351305,11.52516,1780.9,1780.5,11.23248]
[1743702351621,17.1405,1780.9,1780.5,5.61623]
[1743702351828,11.52516,1780.9,1780.5,11.23247]
[1743702352227,11.95680012,1780.9,1780.5,11.23247]
[1743702352523,6.34164012,1780.9,1780.6,5.61608]
[1743702352728,5.91,1780.9,1780.7,5.61553]
[1743702353028,5.91,1780.9,1780.8,5.61545]
[1743702354506,17.18486219,1781.5,1780.8,5.61545]
[1743702354712,5.91,1781.5,1781.2,5.61415]
[1743702354904,5.91,1781.5,1781.3,5.61385]
[1743702355227,6.36869,1781.6,1781.3,5.61385]
[1743702355426,0.7557,1781.6,1781.4,5.61352]
[1743702356101,11.98179,1781.6,1781.2,12.53754]
[1743702356314,5.61324,1781.5,1781.2,7.979074]
[1743702356510,0.7557,1781.6,1781.3,5.61372]
[1743702356729,1.17976161,1781.6,1781.3,11.22745]
[1743702357712,1.17976161,1781.6,1781.3,5.61372]
[1743702358031,6.79278161,1781.6,1781.3,5.61372]
[1743702358213,6.79278161,1781.6,1781.3,6.9730004]
[1743702359130,6.79278161,1781.6,1781.3,5.61372]
[1743702359299,1.17976161,1781.6,1781.3,11.22743]
[1743702359505,1.17976161,1781.6,1781.3,5.61371]
[1743702359711,6.79269161,1781.6,1781.3,5.61371]
[1743702360207,12.40581161,1781.6,1781.3,5.61371]
[1743702360405,0.02914477,1781.5,1781.1,11.22636]
[1743702360604,5.6136,1781.4,1781.1,16.84073]
[1743702360799,5.61335,1781.5,1781.2,5.61416]
[1743702361032,0.02914477,1781.3,1781.1,5.61436]
[1743702361440,0.02914477,1781.3,1781.1,11.22874]
[1743702361742,0.02914477,1781.3,1781.1,6.814434]
[1743702362235,0.02914477,1781.3,1781.1,12.428824]
[1743702362431,0.02914477,1781.3,1781.1,6.814434]
[1743702364277,5.64312477,1781.3,1780.9,5.61507]
[1743702364426,0.7532,1781.2,1780.9,5.61502]
[1743702364627,0.7532,1781.2,1780.9,11.23004]
[1743702364866,0.02914477,1781.1,1780.9,11.23004]
[1743702365047,0.02914477,1781.1,1780.9,6.738024]
[1743702365655,5.61523,1780.9,1780.7,0.17553657]
[1743702365826,6.41015,1780.8,1780.5,5.61624]
[1743702366020,10.46430168,1780.6,1780.3,5.61702]
[1743702366260,11.25836168,1780.8,1780.2,0.8183]
[1743702366426,0.02914477,1780.5,1780.4,11.23302]
[1743702366625,0.02914477,1780.5,1780.4,5.61649]
[1743702366821,0.02914477,1780.5,1780.2,5.61728]